fUSD/lending_fUSD_20240116
["ID","MTS","AMOUNT","RATE_DAILY","PERIOD"]
[311764230,1705381847504,-500.0,0.00022426,2]
[311764232,1705381847513,-652.73,0.00022426,2]
[311764233,1705381847523,-500.0,0.00022426,2]
[311764234,1705381847532,-529.34,0.00022426,2]
[311764235,1705381847542,-500.0,0.00022426,2]
[311764236,1705381847552,-615.25,0.00022426,2]
[311764237,1705381847561,-408.18354686,0.00022426,2]
[311764238,1705381847570,-500.0,0.00022426,2]
[311764239,1705381847580,-557.0,0.00022426,2]
[311764240,1705381847590,-500.0,0.00022426,2]
[311764241,1705381847599,-500.0,0.00022426,2]
[311764242,1705381847608,-500.0,0.00022426,2]
[311764243,1705381847618,-500.0,0.00022426,2]
[311764244,1705381847627,-500.0,0.00022426,2]
[311764245,1705381847636,-500.0,0.00022426,2]
[311764246,1705381847646,-500.0,0.00022426,2]
[311764247,1705381847655,-500.0,0.00022426,2]
[311764248,1705381847665,-514.22,0.00022426,2]
[311764249,1705381847674,-500.0,0.00022426,2]
[311764250,1705381847684,-1030.93,0.00022426,2]
[311764251,1705381847693,-500.0,0.00022426,2]
[311764252,1705381847703,-500.0,0.00022426,2]
[311764253,1705381847713,-500.0,0.00022426,2]
[311764254,1705381847722,-500.0,0.00022426,2]
[311764255,1705381847731,-536.02,0.00022426,2]
[311764256,1705381847740,-500.0,0.00022426,2]
[311764257,1705381847749,-500.0,0.00022426,2]
[311764258,1705381847759,-500.0,0.00022426,2]
[311764259,1705381847768,-500.0,0.00022426,2]
[311764260,1705381847777,-500.0,0.00022426,2]
[311764261,1705381847787,-500.0,0.00022426,2]
[311764262,1705381847797,-153.54648296,0.00022426,2]
[311764263,1705381847806,-524.59,0.00022426,2]
[311764264,1705381847815,-500.0,0.00022426,2]
[311764265,1705381847825,-500.0,0.00022426,2]
[311764266,1705381847834,-500.0,0.00022426,2]
[311764267,1705381847843,-500.0,0.00022426,2]
[311764268,1705381847853,-500.0,0.00022426,2]
[311764269,1705381847863,-500.0,0.00022426,2]
[311764270,1705381847873,-500.0,0.00022426,2]
[311764271,1705381847882,-504.8,0.00022426,2]
[311764272,1705381847892,-517.32,0.00022426,2]
[311764273,1705381847902,-500.0,0.00022426,2]
[311764274,1705381847911,-500.0,0.00022426,2]
[311764275,1705381847920,-197.65,0.00022426,2]
[311764276,1705381847960,-409.70551964,0.00022426,2]
[311764277,1705381847970,-500.0,0.00022426,2]
[311764278,1705381847980,-500.0,0.00022426,2]
[311764279,1705381847990,-555.1,0.00022426,2]
[311764280,1705381847999,-500.0,0.00022426,2]
[311764281,1705381848009,-500.0,0.00022426,2]
[311764282,1705381848018,-500.0,0.00022426,2]
[311764283,1705381848028,-500.0,0.00022426,2]
[311764284,1705381848038,-500.0,0.00022426,2]
[311764285,1705381848047,-500.0,0.00022426,2]
[311764286,1705381848057,-696.22,0.00022426,2]
[311764287,1705381848066,-500.0,0.00022426,2]
[311764288,1705381848076,-500.0,0.00022426,2]
[311764289,1705381848087,-500.0,0.00022426,2]
[311764290,1705381848096,-500.0,0.00022426,2]
[311764291,1705381848106,-500.0,0.00022426,2]
[311764292,1705381848115,-288.99561419,0.00022426,2]
[311764293,1705381848124,-500.0,0.00022426,2]
[311764294,1705381848134,-537.27,0.00022426,2]
[311764295,1705381848143,-574.95,0.00022426,2]
[311764296,1705381848152,-500.0,0.00022426,2]
[311764297,1705381848162,-538.5,0.00022426,2]
[311764298,1705381848171,-500.0,0.00022426,2]
[311764299,1705381848181,-500.0,0.00022426,2]
[311764300,1705381848191,-500.0,0.00022426,2]
[311764301,1705381848200,-500.0,0.00022426,2]
[311764302,1705381848209,-378.17347188,0.00022426,2]
[311764303,1705381848218,-435.68703654,0.00022426,2]
[311764304,1705381848227,-500.0,0.00022426,2]
[311764305,1705381848236,-956.64,0.00022426,2]
[311764306,1705381848246,-500.0,0.00022426,2]
[311764307,1705381848255,-593.87,0.00022426,2]
[311764308,1705381848266,-500.0,0.00022426,2]
[311764309,1705381848275,-854.31,0.00022426,2]
[311764310,1705381848284,-500.0,0.00022426,2]
[311764311,1705381848293,-500.0,0.00022426,2]
[311764312,1705381848302,-500.0,0.00022426,2]
[311764313,1705381848312,-3782.09,0.00022426,2]
[311764314,1705381848321,-500.0,0.00022426,2]
[311764315,1705381848330,-576.64,0.00022426,2]
[311764316,1705381848339,-735.78,0.00022426,2]
[311764317,1705381848349,-500.0,0.00022426,2]
[311764318,1705381848358,-500.0,0.00022426,2]
[311764319,1705381848367,-500.0,0.00022426,2]
[311764320,1705381848376,-509.00353032,0.00022426,2]
[311764321,1705381848385,-2744.31,0.00022426,2]
[311764322,1705381848395,-1991.09,0.00022426,2]
[311764323,1705381848407,-500.0,0.00022426,2]
[311764324,1705381848417,-500.0,0.00022426,2]
[311764325,1705381848426,-500.0,0.00022426,2]
[311764326,1705381848436,-500.0,0.00022426,2]
[311764327,1705381848446,-500.0,0.00022426,2]
[311764328,1705381848455,-500.0,0.00022426,2]
[311764329,1705381848464,-208.95732055,0.00022426,2]
[311764330,1705381848473,-500.0,0.00022426,2]
[311764331,1705381848485,-7390.8,0.00022426,2]
[311764332,1705381848495,-645.11,0.00022426,2]
[311764333,1705381848504,-500.0,0.00022426,2]
[311764334,1705381848513,-540.74,0.00022426,2]
[311764335,1705381848523,-6540.31,0.00022426,2]
[311764336,1705381848533,-500.0,0.00022426,2]
[311764337,1705381848542,-2678.8,0.00022426,2]
[311764338,1705381848552,-575.02,0.00022426,2]
[311764339,1705381848562,-500.0,0.00022426,2]
[311764340,1705381848572,-855.33,0.00022426,2]
[311764341,1705381848581,-193.12,0.00022426,2]
[311764342,1705381848590,-500.0,0.00022426,2]
[311764343,1705381848600,-1424.42,0.00022426,2]
[311764344,1705381848609,-500.0,0.00022426,2]
[311764345,1705381848619,-500.0,0.00022426,2]
[311764346,1705381848628,-500.0,0.00022426,2]
[311764347,1705381848638,-500.0,0.00022426,2]
[311764348,1705381848647,-500.0,0.00022426,2]
[311764349,1705381848657,-500.0,0.00022426,2]
[311764350,1705381848666,-301.45913689,0.00022426,5]
[311764351,1705381848676,-3526.95,0.00022426,2]
[311764352,1705381848686,-2241.91,0.00022426,2]
[311764353,1705381848695,-500.0,0.00022426,2]
[311764354,1705381848705,-500.0,0.00022426,2]
[311764355,1705381848715,-908.98,0.00022426,2]
[311764356,1705381848726,-1360.14,0.00022426,2]
[311764357,1705381848736,-500.0,0.00022426,2]
[311764358,1705381848746,-500.0,0.00022426,2]
[311764359,1705381848756,-541.53,0.00022426,2]
[311764360,1705381848766,-500.0,0.00022426,2]
[311764361,1705381848776,-6335.67,0.00022426,2]
[311764362,1705381848786,-568.49,0.00022426,2]
[311764363,1705381848796,-500.0,0.00022426,2]
[311764364,1705381848806,-494.51390555,0.00022426,2]
[311764365,1705381848816,-500.0,0.00022426,2]
[311764366,1705381848826,-1074.18,0.00022426,2]
[311764367,1705381848837,-563.64,0.00022426,2]
[311764368,1705381848847,-500.0,0.00022426,2]
[311764369,1705381848857,-500.0,0.00022426,2]
[311764370,1705381848867,-500.0,0.00022426,2]
[311764371,1705381848877,-9797.9,0.00022426,2]
[311764372,1705381848888,-557.39,0.00022426,2]
[311764373,1705381848898,-500.0,0.00022426,2]
[311764374,1705381849024,-837.0,0.00022426,2]
[311764375,1705381849045,-500.0,0.00022426,2]
[311764376,1705381849056,-416.73977101,0.00022426,2]
[311764377,1705381849067,-500.0,0.00022426,2]
[311764378,1705381849077,-500.0,0.00022426,2]
[311764379,1705381849087,-500.0,0.00022426,2]
[311764380,1705381849098,-814.19,0.00022426,2]
[311764381,1705381849109,-500.0,0.00022426,2]
[311764382,1705381849119,-3162.78,0.00022426,2]
[311764383,1705381849129,-1054.96,0.00022426,2]
[311764384,1705381849140,-500.0,0.00022426,2]
[311764385,1705381849149,-500.0,0.00022426,2]
[311764386,1705381849159,-551.56,0.00022426,2]
[311764387,1705381849169,-2174.93,0.00022426,2]
[311764388,1705381849179,-500.0,0.00022426,2]
[311764389,1705381849189,-500.0,0.00022426,2]
[311764390,1705381849199,-500.0,0.00022426,2]
[311764391,1705381849209,-2549.69,0.00022426,2]
[311764392,1705381849219,-16823.55,0.00022426,2]
[311764393,1705381849229,-500.0,0.00022426,2]
[311764394,1705381849239,-1432.73,0.00022426,2]
[311764395,1705381849250,-500.0,0.00022426,2]
[311764396,1705381849259,-500.0,0.00022426,2]
[311764397,1705381849270,-500.0,0.00022426,2]
[311764398,1705381849281,-501.53,0.00022426,2]
[311764399,1705381849293,-976.05,0.00022426,2]
[311764400,1705381849305,-520.7,0.00022426,2]
[311764401,1705381849316,-541.81,0.00022426,2]
[311764402,1705381849326,-522.66,0.00022426,2]
[311764403,1705381849336,-577.11,0.00022426,2]
[311764404,1705381849347,-1353.56,0.00022426,2]
[311764405,1705381849357,-1347.93,0.00022426,2]
[311764406,1705381849367,-500.0,0.00022426,2]
[311764407,1705381849377,-1125.59,0.00022426,2]
[311764408,1705381849387,-511.38,0.00022426,2]
[311764409,1705381849397,-500.0,0.00022426,2]
[311764410,1705381849407,-500.0,0.00022426,2]
[311764411,1705381849418,-500.0,0.00022426,2]
[311764412,1705381849429,-500.0,0.00022426,2]
[311764413,1705381849440,-731.58,0.00022426,2]
[311764414,1705381849450,-500.0,0.00022426,2]
[311764415,1705381849461,-500.0,0.00022426,2]
[311764416,1705381849471,-500.0,0.00022426,2]
[311764417,1705381849481,-523.68,0.00022426,2]
[311764418,1705381849491,-1797.16,0.00022426,2]
[311764419,1705381849501,-2055.38,0.00022426,2]
[311764420,1705381849510,-500.0,0.00022426,2]
[311764421,1705381849520,-500.0,0.00022426,2]
[311764422,1705381849529,-5380.53,0.00022426,2]
[311764423,1705381849540,-1545.18,0.00022426,2]
[311764424,1705381849550,-624.74,0.00022426,2]
[311764425,1705381849560,-887.81,0.00022426,2]
[311764426,1705381849569,-500.0,0.00022426,2]
[311764427,1705381849579,-500.0,0.00022426,2]
[311764428,1705381849589,-500.0,0.00022426,2]
[311764429,1705381849599,-1174.33,0.00022426,2]
[311764430,1705381849608,-1288.39,0.00022426,2]
[311764431,1705381849619,-500.0,0.00022426,2]
[311764432,1705381849632,-682.33,0.00022426,2]
[311764433,1705381849642,-500.0,0.00022426,2]
[311764434,1705381849651,-500.0,0.00022426,2]
[311764435,1705381849661,-1243.2,0.00022426,2]
[311764436,1705381849670,-2870.84,0.00022426,2]
[311764437,1705381849680,-1096.28,0.00022426,2]
[311764438,1705381849689,-500.0,0.00022426,2]
[311764439,1705381849699,-1440.25,0.00022426,2]
[311764440,1705381849708,-500.0,0.00022426,2]
[311764441,1705381849718,-2400.88,0.00022426,2]
[311764442,1705381849727,-3566.92,0.00022426,2]
[311764443,1705381849736,-2663.23,0.00022426,2]
[311764444,1705381849746,-615.0,0.00022426,2]
[311764445,1705381849755,-828.26,0.00022426,2]
[311764446,1705381849765,-500.0,0.00022426,2]
[311764447,1705381849774,-500.0,0.00022426,2]
[311764448,1705381849784,-744.1,0.00022426,2]
[311764449,1705381849793,-500.0,0.00022426,2]
[311764450,1705381849803,-565.38,0.00022426,2]
[311764451,1705381849813,-500.0,0.00022426,2]
[311764452,1705381849823,-1199.24,0.00022426,2]
[311764453,1705381849832,-829.71,0.00022426,2]
[311764454,1705381849842,-500.0,0.00022426,2]
[311764455,1705381849851,-500.0,0.00022426,2]
[311764456,1705381849861,-775.69,0.00022426,2]
[311764457,1705381849870,-500.0,0.00022426,2]
[311764458,1705381849880,-500.0,0.00022426,2]
[311764459,1705381849889,-500.0,0.00022426,2]
[311764460,1705381849899,-500.0,0.00022426,2]
[311764461,1705381849909,-500.0,0.00022426,2]
[311764462,1705381849918,-500.0,0.00022426,2]
[311764463,1705381849928,-500.0,0.00022426,2]
[311764464,1705381849938,-500.0,0.00022426,2]
[311764465,1705381849947,-946.48,0.00022426,2]
[311764466,1705381849957,-500.0,0.00022426,2]
[311764467,1705381849967,-2090.72,0.00022426,2]
[311764468,1705381849977,-592.32,0.00022426,2]
[311764469,1705381849986,-500.0,0.00022426,2]
[311764470,1705381849996,-2155.89,0.00022426,2]
[311764471,1705381850005,-500.0,0.00022426,2]
[311764472,1705381850015,-2109.7,0.00022426,2]
[311764473,1705381850024,-500.0,0.00022426,2]
[311764474,1705381850034,-1702.15,0.00022426,2]
[311764475,1705381850043,-1218.96,0.00022426,2]
[311764476,1705381850054,-1137.2,0.00022426,2]
[311764477,1705381850063,-500.0,0.00022426,2]
[311764478,1705381850073,-914.1,0.00022426,2]
[311764479,1705381850082,-500.0,0.00022426,2]
[311764480,1705381850092,-793.93,0.00022426,2]
[311764481,1705381850101,-500.0,0.00022426,2]
[311764482,1705381850111,-500.0,0.00022426,2]
[311764483,1705381850121,-1602.94,0.00022426,2]
[311764484,1705381850130,-1041.83,0.00022426,2]
[311764485,1705381850139,-500.0,0.00022426,2]
[311764486,1705381850149,-500.0,0.00022426,2]
[311764487,1705381850159,-1024.65,0.00022426,2]
[311764488,1705381850169,-678.17,0.00022426,2]
[311764489,1705381850178,-905.8,0.00022426,2]
[311764490,1705381850188,-500.0,0.00022426,2]
[311764491,1705381850197,-1007.72,0.00022426,2]
[311764492,1705381850207,-528.35,0.00022426,2]
[311764493,1705381850217,-500.0,0.00022426,2]
[311764494,1705381850226,-3109.12,0.00022426,2]
[311764495,1705381850236,-3322.61,0.00022426,2]
[311764496,1705381850246,-9975.05,0.00022426,2]
[311764497,1705381850256,-2276.11,0.00022426,2]
[311764498,1705381850265,-1273.92,0.00022426,2]
[311764499,1705381850275,-500.0,0.00022426,2]
[311764500,1705381850284,-1343.23,0.00022426,2]
[311764501,1705381850294,-737.46,0.00022426,2]
[311764502,1705381850303,-500.0,0.00022426,2]
[311764503,1705381850314,-500.0,0.00022426,2]
[311764504,1705381850323,-947.77,0.00022426,2]
[311764505,1705381850332,-500.0,0.00022426,2]
[311764506,1705381850342,-1063.66,0.00022426,2]
[311764507,1705381850351,-570.24,0.00022426,2]
[311764508,1705381850361,-1629.71,0.00022426,2]
[311764509,1705381850371,-711.8,0.00022426,2]
[311764510,1705381850381,-811.88,0.00022426,2]
[311764511,1705381850391,-1568.29,0.00022426,2]
[311764512,1705381850402,-829.72,0.00022426,2]
[311764513,1705381850413,-686.15,0.00022426,2]
[311764514,1705381850422,-453.30569027,0.00022426,2]
[311764515,1705381850431,-2016.84,0.00022426,2]
[311764516,1705381850441,-1266.23,0.00022426,2]
[311764517,1705381850452,-668.69,0.00022426,2]
[311764518,1705381850462,-500.0,0.00022426,2]
[311764519,1705381850472,-500.0,0.00022426,2]
[311764520,1705381850483,-500.0,0.00022426,2]
[311764521,1705381850493,-1170.76,0.00022426,2]
[311764522,1705381850503,-2266.46,0.00022426,2]
[311764523,1705381850513,-554.86,0.00022426,2]
[311764524,1705381850523,-500.0,0.00022426,2]
[311764525,1705381850533,-500.0,0.00022426,2]
[311764526,1705381850542,-915.11,0.00022426,2]
[311764527,1705381850552,-500.0,0.00022426,2]
[311764528,1705381850563,-2073.37,0.00022426,2]
[311764529,1705381850573,-3287.57,0.00022426,2]
[311764530,1705381850582,-611.35,0.00022426,2]
[311764531,1705381850592,-500.0,0.00022426,2]
[311764532,1705381850601,-500.0,0.00022426,2]
[311764533,1705381850611,-500.0,0.00022426,2]
[311764534,1705381850620,-500.0,0.00022426,2]
[311764535,1705381850642,-3996.24,0.00022426,2]
[311764536,1705381850653,-1617.87,0.00022426,2]
[311764537,1705381850664,-4562.45,0.00022426,2]
[311764538,1705381850674,-4653.39,0.00022426,2]
[311764539,1705381850684,-500.0,0.00022426,2]
[311764540,1705381850694,-2665.15,0.00022426,2]
[311764541,1705381850704,-500.0,0.00022426,2]
[311764542,1705381850714,-1128.23,0.00022426,2]
[311764543,1705381850724,-500.0,0.00022426,2]
[311764544,1705381850734,-500.0,0.00022426,2]
[311764545,1705381850744,-680.53,0.00022426,2]
[311764546,1705381850755,-5773.0,0.00022426,2]
[311764547,1705381850765,-850.46,0.00022426,2]
[311764548,1705381850775,-526.93,0.00022426,2]
[311764549,1705381850785,-500.0,0.00022427,2]
[311764550,1705381850795,-742.6,0.00022427,2]
[311764551,1705381850805,-500.0,0.00022427,2]
[311764552,1705381850816,-500.0,0.00022427,2]
[311764553,1705381850826,-500.0,0.00022427,2]
[311764554,1705381850836,-500.0,0.00022427,2]
[311764555,1705381850846,-500.0,0.00022427,2]
[311764556,1705381850856,-500.0,0.00022427,2]
[311764557,1705381850866,-500.0,0.00022427,2]
[311764558,1705381850875,-521.34,0.00022427,2]
[311764559,1705381850886,-500.0,0.00022427,2]
[311764560,1705381850895,-500.0,0.00022427,2]
[311764561,1705381850904,-500.0,0.00022427,2]
[311764562,1705381850914,-500.0,0.00022427,2]
[311764563,1705381850925,-500.0,0.00022427,2]
[311764564,1705381850935,-500.0,0.00022427,2]
[311764565,1705381850945,-500.0,0.00022427,2]
[311764566,1705381850955,-500.0,0.00022427,2]
[311764567,1705381850965,-595.41,0.00022427,2]
[311764568,1705381850975,-500.0,0.00022427,2]
[311764569,1705381850985,-500.0,0.00022427,2]
[311764570,1705381850994,-500.0,0.00022427,2]
[311764571,1705381851004,-500.0,0.00022427,2]
[311764572,1705381851014,-500.0,0.00022427,2]
[311764573,1705381851024,-500.0,0.00022427,2]
[311764574,1705381851034,-250.0,0.00022427,2]
[311764575,1705381851043,-506.9,0.00022427,2]
[311764576,1705381851053,-500.0,0.00022427,2]
[311764577,1705381851063,-500.0,0.00022427,2]
[311764578,1705381851073,-561.84,0.00022427,2]
[311764579,1705381851083,-500.0,0.00022427,2]
[311764580,1705381851093,-500.0,0.00022427,2]
[311764581,1705381851104,-500.0,0.00022427,2]
[311764582,1705381851114,-621.66,0.00022427,2]
[311764583,1705381851124,-519.43,0.00022427,2]
[311764584,1705381851133,-500.0,0.00022427,2]
[311764585,1705381851143,-500.0,0.00022427,2]
[311764586,1705381851153,-500.0,0.00022427,2]
[311764587,1705381851162,-506.79,0.00022427,2]
[311764588,1705381851172,-522.16,0.00022427,2]
[311764589,1705381851182,-624.36,0.00022427,2]
[311764590,1705381851191,-500.0,0.00022427,2]
[311764591,1705381851201,-791.67,0.00022427,2]
[311764592,1705381851211,-500.0,0.00022427,2]
[311764594,1705381851602,-500.0,0.00022427,2]
[311764595,1705381851612,-886.28,0.00022427,2]
[311764596,1705381851622,-500.0,0.00022427,2]
[311764597,1705381851633,-500.0,0.00022427,2]
[311764598,1705381851642,-500.0,0.00022427,2]
[311764599,1705381851653,-500.0,0.00022427,2]
[311764600,1705381851662,-500.0,0.00022427,2]
[311764601,1705381851672,-500.0,0.00022427,2]
[311764602,1705381851681,-876.14,0.00022427,2]
[311764603,1705381851691,-733.19,0.00022427,2]
[311764604,1705381851701,-678.2,0.00022427,2]
[311764605,1705381851711,-536.9159265,0.00022427,2]
[311764606,1705381851721,-521.16,0.00022427,2]
[311764607,1705381851730,-548.41,0.00022427,2]
[311764608,1705381851740,-500.0,0.00022427,2]
[311764609,1705381851750,-541.43,0.00022427,2]
[311764610,1705381851760,-500.0,0.00022427,2]
[311764611,1705381851769,-500.0,0.00022427,2]
[311764612,1705381851779,-500.0,0.00022427,2]
[311764613,1705381851789,-500.0,0.00022427,2]
[311764614,1705381851798,-500.0,0.00022427,2]
[311764615,1705381851808,-564.33,0.00022427,2]
[311764616,1705381851818,-500.0,0.00022427,2]
[311764617,1705381851828,-554.58,0.00022427,2]
[311764618,1705381851837,-899.16,0.00022427,2]
[311764619,1705381851846,-500.0,0.00022427,2]
[311764620,1705381851857,-500.0,0.00022427,2]
[311764621,1705381851867,-500.0,0.00022427,2]
[311764622,1705381851877,-500.0,0.00022427,2]
[311764623,1705381851886,-500.0,0.00022427,2]
[311764624,1705381851896,-811.85,0.00022427,2]
[311764625,1705381851906,-757.23,0.00022427,2]
[311764626,1705381851916,-500.0,0.00022427,2]
[311764627,1705381851925,-500.0,0.00022427,2]
[311764628,1705381851935,-601.66,0.00022427,2]
[311764629,1705381851945,-500.0,0.00022427,2]
[311764630,1705381851954,-500.0,0.00022427,2]
[311764631,1705381851963,-554.81,0.00022427,2]
[311764632,1705381851973,-709.24,0.00022427,2]
[311764633,1705381851983,-500.0,0.00022427,2]
[311764634,1705381851993,-500.0,0.00022427,2]
[311764635,1705381852007,-500.0,0.00022427,2]
[311764636,1705381852017,-500.0,0.00022427,2]
[311764637,1705381852027,-578.53,0.00022427,2]
[311764638,1705381852037,-500.0,0.00022427,2]
[311764639,1705381852047,-501.37,0.00022427,2]
[311764640,1705381852057,-715.14,0.00022427,2]
[311764641,1705381852067,-500.0,0.00022427,2]
[311764642,1705381852077,-2310.1,0.00022427,2]
[311764643,1705381852087,-500.0,0.00022427,2]
[311764644,1705381852098,-615.05,0.00022427,2]
[311764645,1705381852107,-500.0,0.00022427,2]
[311764646,1705381852118,-500.0,0.00022427,2]
[311764647,1705381852129,-1275.86,0.00022427,2]
[311764648,1705381852139,-500.0,0.00022427,2]
[311764649,1705381852149,-825.3,0.00022427,2]
[311764650,1705381852159,-500.0,0.00022427,2]
[311764651,1705381852169,-500.0,0.00022427,2]
[311764652,1705381852179,-500.0,0.00022427,2]
[311764653,1705381852189,-500.0,0.00022427,2]
[311764654,1705381852199,-500.0,0.00022427,2]
[311764655,1705381852209,-709.32,0.00022427,2]
[311764656,1705381852219,-500.0,0.00022427,2]
[311764657,1705381852229,-712.98,0.00022427,2]
[311764658,1705381852239,-500.0,0.00022427,2]
[311764659,1705381852249,-902.82,0.00022427,2]
[311764660,1705381852260,-500.0,0.00022427,2]
[311764661,1705381852269,-599.29,0.00022427,2]
[311764662,1705381852279,-500.0,0.00022427,2]
[311764663,1705381852289,-500.0,0.00022427,2]
[311764664,1705381852299,-1098.0,0.00022427,2]
[311764665,1705381852309,-907.08,0.00022427,2]
[311764666,1705381852319,-656.09,0.00022427,2]
[311764667,1705381852330,-1021.14,0.00022427,2]
[311764668,1705381852341,-500.0,0.00022427,2]
[311764669,1705381852351,-500.0,0.00022427,2]
[311764670,1705381852362,-500.0,0.00022427,2]
[311764671,1705381852371,-500.0,0.00022427,2]
[311764672,1705381852381,-500.0,0.00022427,2]
[311764673,1705381852391,-278.23653318,0.00022427,2]
[311764674,1705381852402,-776.67,0.00022427,2]
[311764675,1705381852414,-490.58914663,0.00022427,2]
[311764676,1705381852424,-500.0,0.00022427,2]
[311764677,1705381852433,-500.0,0.00022427,2]
[311764678,1705381852443,-578.04,0.00022427,2]
[311764679,1705381852453,-1043.11,0.00022427,2]
[311764680,1705381852463,-756.41,0.00022427,2]
[311764681,1705381852473,-621.91,0.00022427,2]
[311764682,1705381852483,-541.26,0.00022427,2]
[311764683,1705381852493,-848.69,0.00022427,2]
[311764684,1705381852503,-649.66,0.00022427,2]
[311764685,1705381852514,-500.0,0.00022427,2]
[311764686,1705381852524,-500.0,0.00022427,2]
[311764687,1705381852535,-2425.03,0.00022427,2]
[311764688,1705381852545,-1653.97,0.00022427,2]
[311764689,1705381852556,-751.4,0.00022427,2]
[311764690,1705381852566,-502.31553912,0.00022427,2]
[311764691,1705381852577,-631.62,0.00022427,2]
[311764692,1705381852588,-500.0,0.00022427,2]
[311764693,1705381852598,-936.47,0.00022427,2]
[311764694,1705381852607,-2415.37,0.00022427,2]
[311764695,1705381852617,-500.0,0.00022427,2]
[311764696,1705381852628,-656.19,0.00022427,2]
[311764697,1705381852637,-598.36,0.00022427,2]
[311764698,1705381852647,-2583.39,0.00022427,2]
[311764699,1705381852657,-500.0,0.00022427,2]
[311764700,1705381852668,-601.3,0.00022427,2]
[311764701,1705381852678,-500.0,0.00022427,2]
[311764702,1705381852688,-500.0,0.00022427,2]
[311764703,1705381852698,-275.16,0.00022427,2]
[311764704,1705381852709,-947.06,0.00022427,2]
[311764705,1705381852718,-500.0,0.00022427,2]
[311764706,1705381852728,-1022.66,0.00022427,2]
[311764707,1705381852738,-300.0,0.00022427,2]
[311764708,1705381852747,-658.45,0.00022427,2]
[311764709,1705381852757,-500.0,0.00022427,2]
[311764710,1705381852767,-549.01,0.00022427,2]
[311764711,1705381852777,-1061.94,0.00022427,2]
[311764712,1705381852787,-575.85449081,0.00022427,2]
[311764713,1705381852797,-606.71,0.00022427,2]
[311764714,1705381852806,-500.0,0.00022427,2]
[311764715,1705381852816,-500.0,0.00022427,2]
[311764716,1705381852825,-586.85,0.00022427,2]
[311764717,1705381852835,-500.0,0.00022427,2]
[311764718,1705381852847,-500.0,0.00022427,2]
[311764719,1705381852858,-1638.65,0.00022427,2]
[311764720,1705381852868,-500.0,0.00022427,2]
[311764721,1705381852878,-1628.02,0.00022427,2]
[311764722,1705381852888,-500.0,0.00022427,2]
[311764723,1705381852900,-500.0,0.00022427,2]
[311764724,1705381852911,-500.0,0.00022427,5]
[311764725,1705381852921,-509.22,0.00022427,2]
[311764726,1705381852932,-639.05,0.00022427,2]
[311764727,1705381852943,-2712.04,0.00022427,2]
[311764728,1705381852954,-500.0,0.00022427,2]
[311764729,1705381852965,-500.0,0.00022427,2]
[311764730,1705381852975,-500.0,0.00022427,2]
[311764731,1705381852986,-648.6923115,0.00022427,2]